Workbook

Sheet Contents

Sheet Availibility Analysis
A2: Analysis for Refinery | J2: Analysis for System
C3: Size of Unit | E3: MW | F3: 50 | G3: 100 | H3: =500/3 -> 166.6666667 | J3: Size of Unit | M3: MW | N3: =F3 -> 50 | O3: =G3 -> 100 | P3: 166.6666667
C4: Cost of unit per kW | E4: USD/kW | F4: 1200 | G4: 1000 | H4: 800 | J4: Cost of unit per kW | M4: USD/kW | N4: =F4 -> 1200 | O4: 1000 | P4: 800
C7: Required MW for Refinery | F7: 220 | G7: =F7 -> 220 | H7: =G7 -> 220 | J7: Capacity for Residents | M7: MW | N7: 500 | O7: 500 | P7: 500
C8: Cost of Hour Out for Refinery | F8: 500000 | G8: =F8 -> 500000 | H8: =G8 -> 500000 | J8: Cost/MWH for Outage | M8: $/MWH | N8: 50 | O8: =N8 -> 50 | P8: =O8 -> 50
C9: Carrying Charge Rate | F9: 0.1 | G9: 0.1 | H9: 0.1 | J9: Carrying Charge Rate | M9: % | N9: 0.1 | O9: =N9 -> 0.1 | P9: =O9 -> 0.1
C10: Capacity | E10: MW | F10: 500 | G10: 500 | H10: 500
C11: Capacity Cost | E11: USD/kW-yr | F11: =F4*$F$9 -> 120 | G11: =G4*$F$9 -> 100 | H11: =H4*$F$9 -> 80 | J11: Capacity Cost | M11: $/kW/yr | N11: =N4*N9 -> 120 | O11: =O4*O9 -> 100 | P11: 80
C12: Capacity Factor | E12: % | F12: =F7/$F$10 -> 0.44 | G12: =G7/$F$10 -> 0.44 | H12: 0.44 | J12: Capacty Factor | M12: % | N12: 0.8 | O12: 0.8 | P12: 0.8
C13: Hours Run | F13: =F12*8760 -> 3854.4 | G13: =G12*8760 -> 3854.4 | H13: 3854.4
C14: Capacity Charge | E14: USD/MWH | F14: =F11*1000/(8760*F12) -> 31.13325031 | G14: =G11*1000/(8760*G12) -> 25.94437526 | H14: 20.75550021 | J14: Availability | M14: % | N14: 0.96 | O14: 0.93 | P14: 0.9
C15: Probability of Outage | E15: % | F15: =SUMIF(Q30:Q40,"<="&F7,S30:S40) -> 0 | G15: =SUMIF(Q43:Q48,"<="&G7,S43:S48) -> 0.0032 | H15: =SUMIF(Q51:Q54,"<="&H7,S51:S54) -> 0.0198 | J15: Hours Outage | M15: Hrs | N15: =(1-N14)*8760 -> 350.4 | O15: =(1-O14)*8760 -> 613.2 | P15: 876
C16: Total Outage Hours | F16: =F15*8760 -> 0 | G16: =G15*8760 -> 28.032 | H16: 173.448 | J16: MWH Out | N16: =N15*N7 -> 175200 | O16: =O15*O7 -> 306600 | P16: 438000
C18: Captial Cost | E18: USD | F18: =F11*F10*1000 -> 60000000 | G18: =G11*G10*1000 -> 50000000 | H18: 40000000 | J18: Total Capital Cost | M18: USD | N18: =N11*N7*1000 -> 60000000 | O18: =O11*O7*1000 -> 50000000 | P18: 40000000
C19: Outage Cost | E19: USD | F19: =F16*F8 -> 0 | G19: =G16*G8 -> 14016000 | H19: 86724000 | J19: Outage Cost | M19: USD | N19: =N16*N8 -> 8760000 | O19: =O16*O8 -> 15330000 | P19: 21900000
C20: Total Cost | E20: USD | F20: =SUM(F18:F19) -> 60000000 | G20: =SUM(G18:G19) -> 64016000 | H20: 126724000 | J20: Total Cost | M20: USD | N20: =N18+N19 -> 68760000 | O20: =O18+O19 -> 65330000 | P20: 61900000
F22: 1 | G22: 2
C23: Availbility | E23: 1 | F23: 0.92 | G23: 0.95
K25: =AVERAGE(K30:K3029) -> 460.55 | L25: =AVERAGE(L30:L3029) -> 460.6 | M25: 460.1111111 | Q25: Monte Carlo Results
C28: Senario 1 | D28: Capacity | E28: Availibity | F28: Net Capacity | G28: Random | H28: Plant in | I28: Availiable Capacity
C29: Unit1 | D29: 50 | E29: =1-CHOOSE($E$23,$F$23,$G$23) -> 0.08 | F29: =D29*E29 -> 4 | G29: =RAND() -> 0.8753763008 | H29: =G29>=E29 -> TRUE | I29: =H29*D29 -> 50 | R29: Frequency | S29: Probability | T29: cost
C30: Unit2 | D30: 50 | E30: 0.08 | F30: =D30*E30 -> 4 | G30: =RAND() -> 0.734383881 | H30: =G30>=E30 -> TRUE | I30: =H30*D30 -> 50 | K30: 400 | L30: 400 | M30: 500 | Q30: 500 | R30: =COUNTIF(K:K,Q30) -> 4372 | S30: =R30/SUM($R$30:$R$40) -> 0.4372
C31: Unit3 | D31: 50 | E31: 0.08 | F31: 4 | G31: 0.1697105182 | H31: TRUE | I31: 50 | K31: 450 | L31: 500 | M31: 333.3333333 | Q31: 450 | R31: 3793 | S31: 0.3793
C32: Unit4 | D32: 50 | E32: 0.08 | F32: 4 | G32: 0.5425976827 | H32: TRUE | I32: 50 | K32: 450 | L32: 500 | M32: 500 | Q32: 400 | R32: 1486 | S32: 0.1486
C33: Unit5 | D33: 50 | E33: 0.08 | F33: 4 | G33: 0.5841360246 | H33: TRUE | I33: 50 | K33: 500 | L33: 400 | M33: 500 | Q33: 350 | R33: 303 | S33: 0.0303
C34: Unit6 | D34: 50 | E34: 0.08 | F34: 4 | G34: 0.3799360814 | H34: TRUE | I34: 50 | K34: 450 | L34: 500 | M34: 500 | Q34: 300 | R34: 41 | S34: 0.0041
C35: Unit7 | D35: 50 | E35: 0.08 | F35: 4 | G35: 0.09283097782 | H35: TRUE | I35: 50 | K35: 450 | L35: 500 | M35: 500 | Q35: 250 | R35: 5 | S35: 0.0005
C36: Unit8 | D36: 50 | E36: 0.08 | F36: 4 | G36: 0.997842088 | H36: TRUE | I36: 50 | K36: 450 | L36: 500 | M36: 500 | Q36: 200 | R36: 0 | S36: 0
C37: Unit9 | D37: 50 | E37: 0.08 | F37: 4 | G37: 0.4737779055 | H37: TRUE | I37: 50 | K37: 400 | L37: 400 | M37: 500 | Q37: 150 | R37: 0 | S37: 0
C38: Unit10 | D38: 50 | E38: 0.08 | F38: 4 | G38: 0.6262844462 | H38: TRUE | I38: 50 | K38: 450 | L38: 500 | M38: 333.3333333 | Q38: 100 | R38: 0 | S38: 0
I39: =SUM(I29:I38) -> 500 | K39: 500 | L39: 300 | M39: 500 | Q39: 50 | R39: 0 | S39: 0
K40: 500 | L40: 500 | M40: 333.3333333 | Q40: 0 | R40: 0 | S40: 0
K41: 450 | L41: 500 | M41: 500
K42: 500 | L42: 400 | M42: 500 | R42: Frequency | S42: Probability
K43: 450 | L43: 500 | M43: 500 | Q43: 500 | R43: =COUNTIF(L:L,Q43) -> 6557 | S43: =R43/SUM($R$43:$R$48) -> 0.6557
C44: Senario 2 | D44: Capacity | E44: Availibity | F44: Net Capacity | G44: Random | H44: Plant in | I44: Availiable Capacity | K44: 450 | L44: 500 | M44: 333.3333333 | N44: =MIN(L:L) -> 200 | Q44: =Q43-100 -> 400 | R44: 2918 | S44: 0.2918
C45: Unit1 | D45: 100 | E45: =1-CHOOSE($E$23,$F$23,$G$23) -> 0.08 | F45: =D45*E45 -> 8 | G45: =RAND() -> 0.03684408231 | H45: =G45>=E45 -> FALSE | I45: =H45*D45 -> 0 | K45: 500 | L45: 400 | M45: 500 | N45: =MIN(M:M) -> 0 | Q45: =Q44-100 -> 300 | R45: 493 | S45: 0.0493
C46: Unit2 | D46: 100 | E46: 0.08 | F46: =D46*E46 -> 8 | G46: =RAND() -> 0.602820324 | H46: =G46>=E46 -> TRUE | I46: =H46*D46 -> 100 | K46: 400 | L46: 400 | M46: 500 | Q46: 200 | R46: 32 | S46: 0.0032
C47: Unit3 | D47: 100 | E47: 0.08 | F47: 8 | G47: 0.3472339395 | H47: TRUE | I47: 100 | K47: 400 | L47: 400 | M47: 333.3333333 | Q47: 100 | R47: 0 | S47: 0
C48: Unit4 | D48: 100 | E48: 0.08 | F48: 8 | G48: 0.7149886064 | H48: TRUE | I48: 100 | K48: 450 | L48: 400 | M48: 500 | Q48: 0 | R48: 0 | S48: 0
C49: Unit5 | D49: 100 | E49: 0.08 | F49: 8 | G49: 0.4385059054 | H49: TRUE | I49: 100 | K49: 400 | L49: 500 | M49: 500
C50: Unit6 | D50: 0 | E50: 0.08 | F50: 0 | G50: 0.3758129975 | H50: TRUE | I50: 0 | K50: 500 | L50: 400 | M50: 500 | R50: Frequency | S50: Probability
C51: Unit7 | D51: 0 | E51: 0.08 | F51: 0 | G51: 0.1086885995 | H51: TRUE | I51: 0 | K51: 450 | L51: 400 | M51: 500 | Q51: 500 | R51: =COUNTIF(M:M,Q51) -> 7830 | S51: =R51/SUM($R$51:$R$54) -> 0.783
C52: Unit8 | D52: 0 | E52: 0.08 | F52: 0 | G52: 0.7092593198 | H52: TRUE | I52: 0 | K52: 400 | L52: 500 | M52: 500 | Q52: =Q51-D61 -> 333.3333333 | R52: =COUNTIF(M:M,Q52) -> 1972 | S52: =R52/SUM($R$51:$R$54) -> 0.1972
C53: Unit9 | D53: 0 | E53: 0.08 | F53: 0 | G53: 0.65697545 | H53: TRUE | I53: 0 | K53: 400 | L53: 400 | M53: 500 | Q53: =Q52-D62 -> 166.6666667 | R53: =COUNTIF(M:M,Q53) -> 196 | S53: =R53/SUM($R$51:$R$54) -> 0.0196
C54: Unit10 | D54: 0 | E54: 0.08 | F54: 0 | G54: 0.4900269428 | H54: TRUE | I54: 0 | K54: 400 | L54: 400 | M54: 333.3333333 | Q54: =Q53-D63 -> 0 | R54: =COUNTIF(M:M,Q54) -> 2 | S54: =R54/SUM($R$51:$R$54) -> 0.0002
I55: =SUM(I45:I54) -> 400 | K55: 400 | L55: 500 | M55: 333.3333333
K56: 500 | L56: 400 | M56: 500
K57: 400 | L57: 400 | M57: 500
K58: 400 | L58: 500 | M58: 500
K59: 500 | L59: 500 | M59: 500
C60: Senario 3 | D60: Capacity | E60: Availibity | F60: Net Capacity | G60: Random | H60: Plant in | I60: Availiable Capacity | K60: 450 | L60: 200 | M60: 500
C61: Unit1 | D61: =500/3 -> 166.6666667 | E61: =1-CHOOSE($E$23,$F$23,$G$23) -> 0.08 | F61: =D61*E61 -> 13.33333333 | G61: =RAND() -> 0.4281284132 | H61: =G61>=E61 -> TRUE | I61: =H61*D61 -> 166.6666667 | K61: 500 | L61: 400 | M61: 500
C62: Unit2 | D62: =500/3 -> 166.6666667 | E62: 0.08 | F62: =D62*E62 -> 13.33333333 | G62: =RAND() -> 0.8332358454 | H62: =G62>=E62 -> TRUE | I62: =H62*D62 -> 166.6666667 | K62: 450 | L62: 400 | M62: 500
C63: Unit3 | D63: 166.6666667 | E63: 0.08 | F63: 13.33333333 | G63: 0.009058101728 | H63: FALSE | I63: 0 | K63: 500 | L63: 500 | M63: 500
C64: Unit4 | D64: 0 | E64: 0.08 | F64: 0 | G64: 0.3639052556 | H64: TRUE | I64: 0 | K64: 500 | L64: 500 | M64: 500
C65: Unit5 | D65: 0 | E65: 0.08 | F65: 0 | G65: 0.8592012102 | H65: TRUE | I65: 0 | K65: 500 | L65: 400 | M65: 500
C66: Unit6 | D66: 0 | E66: 0.08 | F66: 0 | G66: 0.8297819617 | H66: TRUE | I66: 0 | K66: 500 | L66: 500 | M66: 333.3333333
C67: Unit7 | D67: 0 | E67: 0.08 | F67: 0 | G67: 0.2321182122 | H67: TRUE | I67: 0 | K67: 500 | L67: 500 | M67: 500
C68: Unit8 | D68: 0 | E68: 0.08 | F68: 0 | G68: 0.345774995 | H68: TRUE | I68: 0 | K68: 400 | L68: 500 | M68: 500
C69: Unit9 | D69: 0 | E69: 0.08 | F69: 0 | G69: 0.2013528257 | H69: TRUE | I69: 0 | K69: 500 | L69: 400 | M69: 333.3333333
C70: Unit10 | D70: 0 | E70: 0.08 | F70: 0 | G70: 0.8369624953 | H70: TRUE | I70: 0 | K70: 450 | L70: 400 | M70: 500
I71: =SUM(I61:I70) -> 333.3333333 | K71: 450 | L71: 500 | M71: 500
K72: 400 | L72: 500 | M72: 500
K73: 400 | L73: 500 | M73: 500
K74: 500 | L74: 500 | M74: 500
K75: 500 | L75: 400 | M75: 500
K76: 500 | L76: 500 | M76: 500
K77: 500 | L77: 500 | M77: 333.3333333
K78: 400 | L78: 400 | M78: 500
K79: 500 | L79: 500 | M79: 166.6666667
K80: 400 | L80: 400 | M80: 500
K81: 450 | L81: 500 | M81: 333.3333333
K82: 450 | L82: 300 | M82: 500
K83: 400 | L83: 500 | M83: 333.3333333
K84: 450 | L84: 500 | M84: 500
K85: 500 | L85: 500 | M85: 500
K86: 450 | L86: 400 | M86: 500
K87: 450 | L87: 500 | M87: 500
K88: 450 | L88: 400 | M88: 500
K89: 450 | L89: 400 | M89: 500
K90: 450 | L90: 400 | M90: 500
K91: 400 | L91: 500 | M91: 500
K92: 450 | L92: 400 | M92: 166.6666667
K93: 450 | L93: 400 | M93: 500
K94: 350 | L94: 500 | M94: 333.3333333
K95: 400 | L95: 500 | M95: 333.3333333
K96: 450 | L96: 500 | M96: 500
K97: 450 | L97: 500 | M97: 500
K98: 450 | L98: 500 | M98: 500
K99: 500 | L99: 500 | M99: 500
K100: 400 | L100: 500 | M100: 500
K101: 450 | L101: 500 | M101: 500
K102: 500 | L102: 500 | M102: 333.3333333
K103: 450 | L103: 500 | M103: 500
K104: 450 | L104: 500 | M104: 500
K105: 500 | L105: 500 | M105: 166.6666667
K106: 450 | L106: 500 | M106: 500
K107: 450 | L107: 500 | M107: 500
K108: 500 | L108: 500 | M108: 500
K109: 400 | L109: 500 | M109: 500
K110: 500 | L110: 400 | M110: 333.3333333
K111: 500 | L111: 500 | M111: 500
K112: 400 | L112: 500 | M112: 333.3333333
K113: 400 | L113: 500 | M113: 500
K114: 450 | L114: 500 | M114: 500
K115: 500 | L115: 500 | M115: 500
K116: 350 | L116: 400 | M116: 500
K117: 500 | L117: 400 | M117: 333.3333333
K118: 500 | L118: 500 | M118: 333.3333333
K119: 450 | L119: 400 | M119: 500
K120: 500 | L120: 500 | M120: 500
K121: 500 | L121: 400 | M121: 500
K122: 450 | L122: 500 | M122: 500
K123: 500 | L123: 400 | M123: 500
K124: 350 | L124: 300 | M124: 333.3333333
K125: 400 | L125: 500 | M125: 500
K126: 500 | L126: 500 | M126: 333.3333333
K127: 450 | L127: 500 | M127: 333.3333333
K128: 500 | L128: 500 | M128: 500
K129: 450 | L129: 500 | M129: 500
K130: 400 | L130: 500 | M130: 166.6666667
K131: 450 | L131: 500 | M131: 500
K132: 500 | L132: 500 | M132: 333.3333333
K133: 500 | L133: 400 | M133: 500
K134: 450 | L134: 500 | M134: 166.6666667
K135: 500 | L135: 500 | M135: 500
K136: 450 | L136: 500 | M136: 333.3333333
K137: 500 | L137: 400 | M137: 500
K138: 450 | L138: 500 | M138: 333.3333333
K139: 350 | L139: 400 | M139: 333.3333333
K140: 450 | L140: 500 | M140: 500
K141: 450 | L141: 400 | M141: 500
K142: 400 | L142: 300 | M142: 500
K143: 400 | L143: 500 | M143: 500
K144: 450 | L144: 400 | M144: 500
K145: 500 | L145: 500 | M145: 500
K146: 500 | L146: 500 | M146: 500
K147: 400 | L147: 400 | M147: 500
K148: 450 | L148: 500 | M148: 500
K149: 400 | L149: 400 | M149: 500
K150: 450 | L150: 400 | M150: 166.6666667
K151: 500 | L151: 500 | M151: 500
K152: 500 | L152: 500 | M152: 500
K153: 500 | L153: 500 | M153: 500
K154: 350 | L154: 400 | M154: 500
K155: 450 | L155: 500 | M155: 500
K156: 450 | L156: 500 | M156: 500
K157: 400 | L157: 400 | M157: 500
K158: 500 | L158: 500 | M158: 333.3333333
K159: 400 | L159: 400 | M159: 500
K160: 400 | L160: 500 | M160: 333.3333333
K161: 500 | L161: 400 | M161: 500
K162: 500 | L162: 500 | M162: 500
K163: 500 | L163: 500 | M163: 500
K164: 500 | L164: 500 | M164: 500
K165: 500 | L165: 300 | M165: 500
K166: 450 | L166: 500 | M166: 500
K167: 450 | L167: 500 | M167: 500
K168: 450 | L168: 500 | M168: 500
K169: 400 | L169: 400 | M169: 500
K170: 500 | L170: 500 | M170: 500
K171: 400 | L171: 500 | M171: 333.3333333
K172: 500 | L172: 400 | M172: 500
K173: 450 | L173: 400 | M173: 166.6666667
K174: 450 | L174: 300 | M174: 333.3333333
K175: 450 | L175: 400 | M175: 333.3333333
K176: 500 | L176: 400 | M176: 500
K177: 400 | L177: 500 | M177: 333.3333333
K178: 450 | L178: 500 | M178: 500
K179: 500 | L179: 500 | M179: 333.3333333
K180: 450 | L180: 500 | M180: 500
K181: 450 | L181: 400 | M181: 500
K182: 450 | L182: 500 | M182: 500
K183: 500 | L183: 500 | M183: 333.3333333
K184: 400 | L184: 400 | M184: 500
K185: 350 | L185: 500 | M185: 333.3333333
K186: 450 | L186: 500 | M186: 500
K187: 500 | L187: 500 | M187: 500
K188: 400 | L188: 500 | M188: 500
K189: 500 | L189: 500 | M189: 500
K190: 500 | L190: 400 | M190: 500
K191: 500 | L191: 500 | M191: 333.3333333
K192: 400 | L192: 500 | M192: 333.3333333
K193: 500 | L193: 500 | M193: 500
K194: 450 | L194: 400 | M194: 500
K195: 500 | L195: 500 | M195: 500
K196: 450 | L196: 500 | M196: 500
K197: 450 | L197: 500 | M197: 500
K198: 400 | L198: 500 | M198: 333.3333333
K199: 500 | L199: 400 | M199: 500
K200: 400 | L200: 400 | M200: 500
K201: 500 | L201: 500 | M201: 500
K202: 400 | L202: 500 | M202: 500
K203: 500 | L203: 500 | M203: 333.3333333
K204: 350 | L204: 500 | M204: 500
K205: 450 | L205: 500 | M205: 500
K206: 500 | L206: 400 | M206: 500
K207: 450 | L207: 400 | M207: 333.3333333
K208: 400 | L208: 300 | M208: 500
... 4292 more rows

Sheet VBA Program
